bitfinex-derivatives/quotes_BTCF0:USTF0_20250324
["timestamp","ask_amount","ask_price","bid_price","bid_amount"]
[1742853665293,0.1134345,88146.0,88145.0,0.203336]
[1742853665593,0.1134371,88144.0,88138.0,0.203336]
[1742853665794,0.1134435,88139.0,88138.0,0.203336]
[1742853665991,0.4742435,88139.0,88138.0,0.204056]
[1742853666391,0.5136635,88139.0,88138.0,0.204056]
[1742853666589,0.5520635,88139.0,88138.0,0.204056]
[1742853666793,0.56100517,88139.0,88138.0,0.204056]
[1742853667186,0.56100517,88139.0,88138.0,0.143656]
[1742853667799,0.67008517,88139.0,88138.0,0.143656]
[1742853668389,0.1134525,88132.0,88131.0,0.2710337]
[1742853668591,0.1144525,88132.0,88131.0,0.2716337]
[1742853668887,0.1910525,88132.0,88131.0,0.2710337]
[1742853669094,0.1910525,88132.0,88131.0,0.2716737]
[1742853669790,0.1910525,88132.0,88131.0,0.00064]
[1742853670091,0.1134538,88131.0,88130.0,0.00017015]
[1742853670295,0.2273738,88131.0,88130.0,0.00077015]
[1742853671991,0.2273738,88131.0,88130.0,0.04017015]
[1742853672386,0.2273738,88131.0,88130.0,0.04077015]
[1742853672599,0.2273738,88131.0,88130.0,0.04017015]
[1742853672789,0.2273738,88131.0,88130.0,0.04085015]
[1742853673895,0.2273738,88131.0,88130.0,0.04017015]
[1742853674796,0.1909738,88131.0,88130.0,0.04017015]
[1742853674995,0.1909738,88131.0,88130.0,0.15362525]
[1742853675197,0.1909738,88131.0,88130.0,0.04077015]
[1742853675703,0.1909738,88131.0,88130.0,0.11527015]
[1742853676496,0.1909738,88131.0,88130.0,0.22872525]
[1742853676693,0.1909738,88131.0,88130.0,0.11527015]
[1742853677000,0.1909738,88131.0,88130.0,0.11467015]
[1742853677400,0.1909738,88131.0,88130.0,0.11527015]
[1742853678301,0.5517738,88131.0,88130.0,0.11527015]
[1742853679400,0.5517738,88131.0,88130.0,0.11467015]
[1742853679707,0.4751738,88131.0,88130.0,0.22872525]
[1742853681705,0.1143738,88131.0,88130.0,0.22872525]
[1742853682007,0.1143738,88131.0,88130.0,0.24872525]
[1742853682207,0.1143738,88131.0,88130.0,0.25810523]
[1742853682408,0.1143738,88131.0,88130.0,0.24872525]
[1742853686007,0.1923738,88131.0,88130.0,0.13527015]
[1742853686510,0.1923738,88131.0,88130.0,0.24872525]
[1742853689417,0.1923738,88131.0,88130.0,0.13527015]
[1742853689611,0.1923738,88131.0,88130.0,0.11527015]
[1742853689914,0.1923738,88131.0,88130.0,0.22872525]
[1742853693018,0.5531738,88131.0,88130.0,0.22872525]
[1742853693713,0.5531738,88131.0,88130.0,0.11527015]
[1742853694108,0.5531738,88131.0,88130.0,0.11467015]
[1742853694719,0.5531738,88131.0,88130.0,0.11527015]
[1742853695726,0.1923738,88131.0,88130.0,0.11527015]
[1742853695922,0.5531738,88131.0,88130.0,0.11527015]
[1742853696422,0.5531738,88131.0,88130.0,0.22812525]
[1742853696610,0.5531738,88131.0,88130.0,0.22872525]
[1742853698215,0.5531738,88131.0,88130.0,0.11527015]
[1742853698517,0.1923738,88131.0,88130.0,0.11527015]
[1742853698819,0.5531738,88131.0,88130.0,0.22872525]
[1742853699017,0.43972,88131.0,88130.0,0.22812525]
[1742853699220,0.43972,88131.0,88130.0,0.26880525]
[1742853700320,0.5531738,88131.0,88130.0,0.26880525]
[1742853700512,0.72290932,88131.0,88130.0,0.26880525]
[1742853701026,0.72290932,88131.0,88130.0,0.15535015]
[1742853701222,0.72290932,88131.0,88130.0,0.26880525]
[1742853703813,0.5531738,88131.0,88130.0,0.26880525]
[1742853706520,0.1923738,88131.0,88130.0,0.26880525]
[1742853707827,0.00092,88131.0,88130.0,0.37788525]
[1742853708327,0.49683641,88133.0,88132.0,0.1134525]
[1742853708535,0.49747641,88133.0,88132.0,0.5640525]
[1742853708828,0.49747641,88133.0,88132.0,0.6427525]
[1742853709631,0.49747641,88133.0,88132.0,0.5293]
[1742853709632,0.61092761,88133.0,88132.0,0.5293]
[1742853709836,0.61092761,88133.0,88132.0,0.6427525]
[1742853710136,0.61092761,88133.0,88132.0,0.5293]
[1742853710335,0.68532761,88133.0,88132.0,0.6427525]
[1742853711335,0.61092761,88133.0,88132.0,0.6427525]
[1742853711533,0.49747641,88133.0,88132.0,0.7519525]
[1742853711739,0.61092761,88133.0,88132.0,0.7519525]
[1742853712031,0.4748912,88133.0,88132.0,0.7519525]
[1742853714737,0.1140912,88133.0,88132.0,0.7519525]
[1742853714937,0.00064,88133.0,88132.0,0.7519525]
[1742853717326,0.1140912,88133.0,88132.0,0.7519525]
[1742853717938,0.1521912,88133.0,88132.0,0.7519525]
[1742853718733,0.1892912,88133.0,88132.0,0.7519525]
[1742853720341,0.07584,88133.0,88132.0,0.7519525]
[1742853729334,0.13603641,88140.0,88136.0,0.0567232]
[1742853729537,0.13603641,88140.0,88138.0,0.1701672]
[1742853729538,0.0437,88139.0,88138.0,0.1701672]
[1742853729738,0.21995641,88139.0,88138.0,0.5509672]
[1742853729937,0.21995641,88139.0,88138.0,0.5929672]
[1742853734437,0.08392,88139.0,88138.0,0.5929672]
[1742853735060,0.00072,88139.0,88138.0,0.5929672]
[1742853735354,0.0861,88145.0,88144.0,0.1134371]
[1742853735651,0.08682,88145.0,88144.0,0.4432371]
[1742853741761,0.08682,88145.0,88144.0,0.4528486]
[1742853741957,0.0004,88168.0,88153.0,0.0567123]
[1742853742259,0.2375724,88177.0,88176.0,0.1133959]
[1742853742455,0.1438965,88177.0,88176.0,0.2237559]
[1742853742647,0.1438965,88177.0,88176.0,0.2145559]
[1742853742957,0.6180911,88177.0,88176.0,0.00116]
[1742853743159,0.5046965,88177.0,88176.0,0.1933959]
[1742853743371,0.1438965,88177.0,88176.0,0.1345159]
[1742853743550,0.00116,88177.0,88176.0,0.14402472]
[1742853743745,0.00416,88177.0,88176.0,0.14402472]
[1742853743944,0.00416,88177.0,88176.0,0.15402472]
[1742853744159,0.00416,88177.0,88176.0,0.1445159]
[1742853744160,0.1175546,88177.0,88176.0,0.1445159]
[1742853744462,0.1205546,88177.0,88176.0,0.1445159]
[1742853745554,0.1597546,88177.0,88176.0,0.1445159]
[1742853745948,0.1597546,88177.0,88157.0,0.82396]
[1742853745949,0.1134049,88169.0,88157.0,0.82396]
[1742853746149,0.3616,88169.0,88168.0,0.43437635]
[1742853746343,0.042,88171.0,88170.0,0.1134036]
[1742853746549,0.04276,88171.0,88170.0,0.4941636]
[1742853746758,0.1561623,88171.0,88170.0,0.4941636]
[1742853746953,0.1561623,88171.0,88170.0,0.5342636]
[1742853747259,0.1561623,88171.0,88170.0,0.38076]
[1742853747464,0.1561623,88171.0,88170.0,0.4941636]
[1742853748051,0.1581623,88171.0,88170.0,0.4941636]
[1742853748652,0.04476,88171.0,88170.0,0.4941636]
[1742853748855,0.0452,88176.0,88175.0,0.1133972]
[1742853749147,0.0452,88176.0,88175.0,0.3657172]
[1742853749347,0.15963591,88176.0,88175.0,0.141]
[1742853749554,0.15963591,88176.0,88175.0,0.14]
[1742853749754,0.15963591,88176.0,88167.0,0.2248867]
[1742853749755,0.113401,88172.0,88171.0,0.1134019]
[1742853749948,0.114481,88172.0,88171.0,0.1344419]
[1742853750563,0.159681,88172.0,88171.0,0.1444419]
[1742853751262,0.161681,88172.0,88171.0,0.1444419]
[1742853751458,0.04828,88172.0,88171.0,0.1444419]
[1742853751757,0.04828,88172.0,88171.0,0.1748419]
[1742853752165,0.163681,88172.0,88171.0,0.2048419]
[1742853752654,0.163681,88172.0,88171.0,0.2648419]
[1742853753454,0.163681,88172.0,88171.0,0.02104]
[1742853753660,0.163681,88172.0,88171.0,0.00104]
[1742853754453,0.00508,88172.0,88171.0,0.2144423]
[1742853754668,0.00508,88172.0,88171.0,0.2544423]
[1742853755361,0.118481,88172.0,88171.0,0.4538023]
[1742853756255,0.205681,88172.0,88171.0,0.4538023]
[1742853758966,0.205681,88172.0,88171.0,0.18524]
[1742853759169,0.205681,88172.0,88171.0,0.1544423]
[1742853759357,0.205681,88172.0,88171.0,0.1978423]
[1742853760451,0.205681,88172.0,88171.0,0.08444]
[1742853760663,0.205681,88172.0,88171.0,0.1978423]
[1742853761352,0.04768,88172.0,88171.0,0.1978423]
[1742853761551,0.3608,88193.0,88183.0,0.1133869]
[1742853761762,0.3608,88193.0,88183.0,0.7057869]
[1742853761967,0.0447,88192.0,88183.0,0.7157869]
[1742853762155,0.3608,88193.0,88183.0,0.7157869]
[1742853762468,0.0447,88192.0,88183.0,0.7157869]
[1742853762656,0.4795856,88184.0,88183.0,0.0414]
[1742853762862,0.57118561,88184.0,88183.0,0.03]
[1742853763061,0.21168561,88184.0,88183.0,0.0314]
[1742853763363,0.21168561,88184.0,88183.0,0.1447469]
[1742853765464,0.21168561,88184.0,88183.0,0.2297469]
[1742853766171,0.57248561,88184.0,88183.0,0.2297469]
[1742853767365,0.61318561,88184.0,88183.0,0.07406]
[1742853767759,0.61318561,88184.0,88183.0,0.03136]
[1742853768066,0.16938561,88184.0,88183.0,0.1433869]
[1742853768272,0.53018561,88184.0,88183.0,0.1447069]
[1742853768459,0.16938561,88184.0,88183.0,0.2333069]
[1742853770064,0.16938561,88184.0,88183.0,0.07522]
[1742853770369,0.21388561,88184.0,88183.0,0.1872869]
[1742853770568,0.21388561,88184.0,88183.0,0.1886869]
[1742853771963,0.21388561,88184.0,88183.0,0.0753]
[1742853772569,0.21388561,88184.0,88183.0,0.1886869]
[1742853773066,0.21388561,88184.0,88183.0,0.2330869]
[1742853773568,0.05600001,88184.0,88183.0,0.2330869]
[1742853773761,0.01000001,88184.0,88183.0,0.2747869]
[1742853774068,0.01000001,88184.0,88183.0,0.2947869]
[1742853774464,0.12338561,88184.0,88183.0,0.2947869]
[1742853774662,0.16838561,88184.0,88183.0,0.2530869]
[1742853774863,0.25458561,88184.0,88183.0,0.2530869]
[1742853778568,0.25458561,88184.0,88183.0,0.0953]
[1742853778772,0.25458561,88184.0,88183.0,0.0753]
[1742853779576,0.16838561,88184.0,88183.0,0.1886869]
[1742853779774,0.12338561,88184.0,88183.0,0.1886869]
[1742853779975,0.16358561,88184.0,88183.0,0.2307869]
[1742853781283,0.16358561,88184.0,88183.0,0.0753]
[1742853781577,0.24408561,88184.0,88183.0,0.0753]
[1742853781782,0.1134036,88170.0,88168.0,0.47437555]
[1742853782085,0.11428361,88170.0,88169.0,0.6866986]
[1742853782273,0.23768361,88170.0,88169.0,0.7269986]
[1742853782474,0.15548361,88170.0,88169.0,0.7269986]
[1742853782675,0.15548361,88170.0,88169.0,0.7709986]
[1742853782975,0.19628361,88170.0,88169.0,0.7709986]
[1742853783177,0.19728361,88170.0,88169.0,0.7269986]
[1742853783779,0.19728361,88170.0,88169.0,0.4559649]
[1742853789676,0.15748361,88170.0,88169.0,0.4559649]
[1742853791279,0.19848361,88170.0,88169.0,0.4559649]
[1742853791687,0.19848361,88170.0,88169.0,0.17096]
[1742853791891,0.1134049,88169.0,88168.0,0.00017015]
[1742853792077,0.00088001,88169.0,88168.0,0.04333015]
[1742853792282,0.3608,88179.0,88178.0,0.1133933]
[1742853792482,0.1133874,88183.0,88182.0,0.1133882]
[1742853792687,0.1145474,88183.0,88182.0,0.05116]
[1742853792986,0.1548474,88183.0,88182.0,0.05]
[1742853793188,0.1985474,88183.0,88182.0,0.05116]
[1742853793987,0.2025474,88183.0,88182.0,0.05116]
[1742853794485,0.3608,88187.0,88182.0,0.1678534]
[1742853794690,0.3608,88187.0,88184.0,0.1133856]
[1742853794889,0.3608,88187.0,88184.0,0.4149856]
[1742853795281,0.11355445,88185.0,88184.0,0.4149856]
[1742853795990,0.11755445,88185.0,88184.0,0.4149856]
[1742853796988,0.12255445,88185.0,88184.0,0.3016]
[1742853797491,0.12255445,88185.0,88184.0,0.4589856]
[1742853799193,0.12255445,88185.0,88184.0,0.2016]
[1742853799399,0.20465445,88185.0,88184.0,0.2]
[1742853799589,0.20465445,88185.0,88184.0,0.20152]
[1742853803296,0.12255445,88185.0,88184.0,0.3149056]
[1742853803496,0.00917015,88185.0,88184.0,0.4019056]
[1742853803693,0.12255445,88185.0,88184.0,0.5163456]
[1742853803889,0.12255445,88185.0,88184.0,0.5587456]
[1742853805200,0.12255445,88185.0,88184.0,0.24392]
[1742853805904,0.20445445,88185.0,88184.0,0.24392]
[1742853806097,0.20445445,88185.0,88184.0,0.25392]
[1742853807108,0.00917015,88185.0,88184.0,0.3673056]
[1742853807607,0.00917015,88185.0,88184.0,0.4115056]
[1742853809804,0.13574138,88203.0,88189.0,0.0566892]
[1742853810003,0.13574138,88203.0,88202.0,0.1133625]
[1742853810206,0.13574138,88203.0,88202.0,0.4191625]
[1742853811005,0.13574138,88204.0,88203.0,0.1133612]
[1742853811208,0.13574138,88204.0,88203.0,0.5169812]
[1742853812705,0.13574138,88204.0,88203.0,0.52695247]
[1742853813112,0.13574138,88204.0,88203.0,0.56805247]
[1742853813707,0.13774138,88204.0,88203.0,0.56805247]
[1742853814514,0.00017015,88211.0,88210.0,0.1133522]
[1742853814809,0.0429,88231.0,88215.0,0.1133458]
[1742853815002,0.0843,88231.0,88215.0,0.7190658]
[1742853815617,0.1133304,88227.0,88215.0,0.7190658]
[1742853815907,0.113336,88223.0,88215.0,0.7630658]
[1742853816114,0.0566677,88223.0,88215.0,0.7630658]
[1742853816608,0.1133375,88222.0,88215.0,0.7630658]
[1742853816814,0.0014,88216.0,88215.0,0.7630658]
[1742853817499,0.0024,88216.0,88215.0,0.7630658]
[1742853817908,0.0024,88216.0,88215.0,0.8040658]
[1742853818502,0.0024,88216.0,88215.0,0.8038258]
[1742853819406,0.0862,88216.0,88215.0,0.8038258]
[1742853819607,0.3495445,88216.0,88215.0,0.49152]
[1742853819802,0.1133522,88210.0,88202.0,0.2710337]
[1742853820111,0.1133522,88210.0,88209.0,0.22358907]
[1742853820112,0.1140722,88210.0,88209.0,0.22358907]
[1742853820416,0.1140722,88210.0,88209.0,0.25358907]
[1742853820809,0.1978722,88210.0,88209.0,0.25358907]
[1742853821907,0.1978722,88210.0,88209.0,0.29688907]
[1742853822417,0.1978722,88210.0,88209.0,0.41076907]
[1742853822619,0.1978722,88210.0,88209.0,0.2079]
[1742853823414,0.1988722,88210.0,88209.0,0.2079]
[1742853823619,0.1998722,88210.0,88209.0,0.2079]
[1742853824215,0.1998722,88210.0,88209.0,0.20778]
[1742853825108,0.1988722,88210.0,88209.0,0.20778]
[1742853825317,0.1998722,88210.0,88209.0,0.20778]
[1742853826421,0.1998722,88210.0,88209.0,0.2077]
[1742853826820,0.1988722,88210.0,88209.0,0.2077]
[1742853827019,0.1998722,88210.0,88209.0,0.2077]
[1742853828025,0.08652,88210.0,88209.0,0.2077]
[1742853828214,0.08652,88210.0,88209.0,0.3310535]
[1742853828414,0.04542,88210.0,88209.0,0.3744535]
[1742853828622,0.04542,88210.0,88209.0,0.4174535]
[1742853829515,0.04442,88210.0,88209.0,0.4174535]
[1742853829716,0.04342,88210.0,88209.0,0.4174535]
[1742853830117,0.1567722,88210.0,88209.0,0.4174535]
[1742853830813,0.04342,88210.0,88209.0,0.4174535]
[1742853831220,0.08482,88210.0,88209.0,0.4174535]
[1742853832130,0.1981722,88210.0,88209.0,0.4174535]
[1742853832319,0.19821927,88210.0,88209.0,0.4174535]
[1742853833320,0.19821927,88210.0,88209.0,0.2607735]
[1742853833532,0.19821927,88210.0,88209.0,0.2885535]
[1742853833731,0.19821927,88210.0,88209.0,0.2164735]
[1742853834035,0.19821927,88210.0,88209.0,0.3301135]
[1742853834223,0.19821927,88210.0,88209.0,0.3749135]
[1742853835724,0.19821927,88210.0,88209.0,0.3739135]
[1742853835925,0.19821927,88210.0,88209.0,0.3749135]
[1742853836330,0.19821927,88210.0,88209.0,0.05372]
[1742853836630,0.19821927,88210.0,88209.0,0.2779135]
[1742853836823,0.19821927,88210.0,88209.0,0.2796335]
[1742853837423,0.19821927,88210.0,88209.0,0.1660735]
[1742853838034,0.55901927,88210.0,88209.0,0.1660735]
[1742853841319,0.55901927,88210.0,88209.0,0.00272]
[1742853841532,0.1133625,88202.0,88197.0,0.0566841]
[1742853841835,0.36152,88202.0,88201.0,0.49019277]
[1742853842033,0.44700001,88202.0,88201.0,0.49019277]
[1742853842234,0.44700001,88202.0,88201.0,0.57619277]
[1742853842828,0.44700001,88202.0,88201.0,0.57719277]
[1742853843026,0.44700001,88202.0,88201.0,0.57819277]
[1742853843228,0.44700001,88202.0,88201.0,0.3753237]
[1742853843529,0.44700001,88202.0,88201.0,0.3763237]
[1742853843736,0.44700001,88202.0,88201.0,0.3773237]
[1742853844033,0.56036251,88202.0,88201.0,0.3773237]
[1742853844531,0.44700001,88202.0,88201.0,0.3773237]
[1742853845335,0.44700001,88202.0,88201.0,0.3763237]
[1742853845933,0.44700001,88202.0,88201.0,0.3743237]
[1742853846134,0.56036251,88202.0,88201.0,0.06372]
[1742853846342,0.56036251,88202.0,88201.0,0.04372]
[1742853846643,0.56036251,88202.0,88201.0,0.04272]
[1742853847434,0.56036251,88202.0,88201.0,0.24529046]
[1742853848747,0.56036251,88202.0,88201.0,0.35665416]
[1742853848935,0.56036251,88202.0,88201.0,0.35865416]
[1742853849447,0.56036251,88202.0,88201.0,0.24529046]
[1742853850343,0.56036251,88202.0,88201.0,0.20529046]
[1742853851839,0.56036251,88202.0,88201.0,0.00272]
[1742853855962,0.56036251,88202.0,88201.0,0.002]
[1742853857051,0.1133715,88195.0,88194.0,0.00017015]
[1742853857250,0.1141315,88195.0,88194.0,0.00089015]
[1742853857555,0.1963315,88195.0,88194.0,0.00089015]
[1742853858244,0.20646103,88195.0,88194.0,0.00389015]
[1742853858639,0.20646103,88195.0,88194.0,0.00589015]
[1742853860939,0.56726103,88195.0,88194.0,0.00589015]
[1742853862549,0.56726103,88195.0,88194.0,0.00517015]
[1742853863463,0.1133856,88184.0,88183.0,0.0806]
[1742853863655,0.1141056,88184.0,88183.0,0.16132]
[1742853863855,0.2415056,88184.0,88183.0,0.16132]
[1742853864655,0.2415056,88184.0,88183.0,0.16732]
[1742853865554,0.2415056,88184.0,88183.0,0.17132]
[1742853869253,0.2415056,88184.0,88183.0,0.01072]
[1742853869456,0.2415056,88184.0,88183.0,0.01]
[1742853870859,0.6023056,88184.0,88183.0,0.01]
[1742853871246,0.0566964,88179.0,88175.0,0.00062369]
[1742853871450,0.1133946,88177.0,88176.0,0.037]
[1742853871651,0.12437474,88177.0,88176.0,0.08052]
[1742853871849,0.19387474,88177.0,88176.0,0.08052]
[1742853872049,0.1836146,88177.0,88176.0,0.08052]
[1742853873257,0.1836146,88177.0,88176.0,0.08652]
[1742853873758,0.19387578,88177.0,88176.0,0.08652]
[1742853875159,0.19487578,88177.0,88176.0,0.08652]
[1742853875450,0.19487578,88177.0,88176.0,0.0858]
[1742853875657,0.19487578,88177.0,88176.0,0.08652]
[1742853876560,0.19487578,88177.0,88176.0,0.0858]
[1742853880448,0.55567578,88177.0,88176.0,0.0858]
[1742853880854,0.55567578,88177.0,88175.0,9e-08]
[1742853880855,0.1133959,88176.0,88175.0,9e-08]
[1742853881162,0.1133959,88176.0,88164.0,0.20257046]
[1742853881163,0.1134087,88166.0,88164.0,0.20257046]
[1742853881462,0.1142087,88166.0,88165.0,0.036]
[1742853881661,0.11341,88165.0,88164.0,0.20257046]
[1742853881865,0.11413,88165.0,88164.0,0.20329046]
[1742853883658,0.11513,88165.0,88164.0,0.20329046]
[1742853883859,0.11613,88165.0,88164.0,0.20329046]
[1742853885161,0.11613,88165.0,88164.0,0.00072]
[1742853885357,0.1134152,88161.0,88160.0,0.0335]
[1742853885658,0.1140552,88161.0,88160.0,0.0335]
[1742853886260,0.1140552,88161.0,88159.0,0.00045372]
[1742853886565,0.1134165,88160.0,88159.0,0.00045372]
[1742853886765,0.11401651,88160.0,88159.0,0.00045372]
[1742853887967,0.11501651,88160.0,88159.0,0.00045372]
[1742853888371,0.11501651,88160.0,88159.0,0.03535372]
[1742853890261,0.11601651,88160.0,88159.0,0.03535372]
[1742853890767,0.12627238,88160.0,88159.0,0.03535372]
[1742853892971,0.12627238,88160.0,88159.0,2e-08]
[1742853893171,0.1134332,88147.0,88146.0,0.0676]
[1742853893479,0.4749132,88147.0,88146.0,0.0676]
[1742853893971,0.8357132,88147.0,88146.0,0.0676]
[1742853894175,0.0567201,88142.0,88138.0,0.20257046]
[1742853894475,0.4742435,88139.0,88138.0,0.20346061]
[1742853894673,0.4852793,88139.0,88138.0,0.20346061]
[1742853896174,0.4862793,88139.0,88138.0,0.20346061]
[1742853896577,0.4862793,88139.0,88128.0,0.33663675]
[1742853896578,0.4421358,88139.0,88128.0,0.33663675]
[1742853896881,0.1134564,88129.0,88128.0,0.33663675]
[1742853897077,0.4749364,88129.0,88128.0,0.0006]
[1742853897263,0.1134576,88128.0,88127.0,0.00045389]
[1742853897468,0.2215376,88128.0,88127.0,0.00045389]
[1742853898677,0.1499376,88128.0,88127.0,0.13391279]
[1742853898872,0.1141376,88128.0,88127.0,0.02105389]
[1742853899379,0.1500376,88128.0,88127.0,0.02105389]
[1742853899678,0.1500376,88128.0,88127.0,0.05425389]
[1742853900987,0.1500376,88128.0,88127.0,0.02105389]
[1742853901280,0.1833376,88128.0,88127.0,0.00045389]
[1742853905779,0.1134782,88112.0,88100.0,0.1]
[1742853905976,0.4749182,88112.0,88111.0,0.22673601]
[1742853906375,0.4749182,88112.0,88111.0,0.22733601]
[1742853906684,0.4749182,88112.0,88111.0,0.17060001]
[1742853906981,0.4759182,88112.0,88111.0,0.17060001]
[1742853907283,0.4769182,88112.0,88111.0,0.28407951]
[1742853907672,0.5468182,88112.0,88111.0,0.28407951]
[1742853910782,0.5468182,88112.0,88111.0,0.17060001]
[1742853911692,0.5468182,88112.0,88111.0,0.23690001]
[1742853913494,0.1134924,88101.0,88099.0,0.1124]
[1742853913785,0.1143324,88101.0,88100.0,0.5862937]
[1742853914188,0.1493324,88101.0,88100.0,0.5862937]
[1742853914781,0.1859324,88101.0,88100.0,0.6202937]
[1742853914979,0.1869324,88101.0,88100.0,0.6202937]
[1742853918991,0.1869324,88101.0,88100.0,0.2806]
[1742853919198,0.2227324,88101.0,88100.0,0.2806]
[1742853919797,0.23296754,88101.0,88100.0,0.2806]
[1742853920100,0.2227324,88101.0,88100.0,0.4262937]
[1742853920496,0.2227324,88101.0,88100.0,0.4617937]
[1742853920700,0.2227324,88101.0,88100.0,0.3483]
[1742853921295,0.2227324,88101.0,88100.0,0.4617937]
[1742853922897,0.2227324,88101.0,88100.0,0.3161]
[1742853923800,0.2227324,88101.0,88100.0,0.4295937]
[1742853924107,0.2227324,88101.0,88100.0,0.3161]
[1742853924498,0.2227324,88101.0,88100.0,0.2806]
[1742853924904,0.2227324,88101.0,88100.0,0.1006]
[1742853925102,0.2227324,88101.0,88100.0,0.1]
[1742853926698,0.2217324,88101.0,88100.0,0.1]
[1742853926894,0.2217324,88101.0,88100.0,0.1006]
[1742853927099,0.2217324,88101.0,88100.0,0.1]
[1742853927604,0.2207324,88101.0,88100.0,0.1]
[1742853927815,0.2217324,88101.0,88100.0,0.1]
[1742853928200,0.2217324,88101.0,88100.0,0.10084]
[1742853928509,0.2217324,88101.0,88100.0,0.1]
[1742853928706,0.2207324,88101.0,88100.0,0.1]
[1742853930003,0.1134989,88096.0,88095.0,5e-08]
[1742853930207,0.4751389,88096.0,88095.0,5e-08]
[1742853930408,0.6574789,88096.0,88095.0,5e-08]
[1742853931311,0.8074789,88096.0,88095.0,5e-08]
[1742853931708,0.6574789,88096.0,88095.0,5e-08]
[1742853932500,0.5452389,88096.0,88095.0,5e-08]
[1742853932707,0.6574389,88096.0,88095.0,5e-08]
[1742853932913,0.5452389,88096.0,88095.0,5e-08]
[1742853933115,0.6574389,88096.0,88095.0,5e-08]
[1742853934907,1.0653389,88096.0,88095.0,5e-08]
[1742853943121,0.1135195,88080.0,88079.0,0.00045414]
[1742853943318,0.8359595,88080.0,88079.0,4e-08]
[1742853943506,0.9402595,88080.0,88079.0,4e-08]
[1742853944110,0.1135401,88064.0,88063.0,6e-08]
[1742853944420,0.8359801,88064.0,88063.0,6e-08]
[1742853944924,0.9045801,88064.0,88063.0,6e-08]
[1742853945914,0.91492737,88064.0,88063.0,6e-08]
[1742853946118,0.1135594,88049.0,88048.0,0.33663675]
[1742853946317,0.4751994,88049.0,88048.0,0.37891675]
[1742853946523,0.5433994,88049.0,88048.0,0.37891675]
[1742853947223,0.5433994,88049.0,88048.0,0.04228]
[1742853947423,0.5443994,88049.0,88048.0,0.0416]
[1742853948415,0.5453994,88049.0,88048.0,0.0416]
[1742853950918,0.5099994,88049.0,88048.0,0.0416]
[1742853951119,0.5099994,88049.0,88048.0,0.0422]
[1742853951330,0.5099994,88049.0,88048.0,0.0416]
[1742853952327,0.5441994,88049.0,88048.0,0.0416]
[1742853952825,0.1135814,88032.0,88031.0,0.00045438]
[1742853953029,0.1135814,88032.0,88031.0,0.10129438]
[1742853953030,0.1145014,88032.0,88031.0,0.10129438]
[1742853953323,0.1145014,88032.0,88031.0,0.10105438]
[1742853953535,0.00092,88032.0,88031.0,0.22403708]
[1742853953724,0.1145014,88032.0,88031.0,0.22463708]
[1742853954226,0.1165014,88032.0,88031.0,0.22463708]
[1742853954618,0.1155014,88032.0,88031.0,0.22463708]
[1742853954817,0.1145014,88032.0,88031.0,0.22463708]
[1742853955025,0.1155014,88032.0,88031.0,0.22463708]
[1742853956321,0.1155014,88032.0,88031.0,0.11105438]
[1742853956723,0.1155014,88032.0,88031.0,0.14265438]
[1742853957817,0.1155014,88032.0,88031.0,0.25623708]
[1742853961526,0.00192,88032.0,88031.0,0.25623708]
[1742853961732,0.4743635,88046.0,88045.0,0.1135646]
[1742853961930,0.47496351,88046.0,88045.0,0.0506]
[1742853962127,0.47496351,88046.0,88045.0,0.1641646]
[1742853962426,0.47496351,88046.0,88045.0,0.1957646]
[1742853962817,0.47496331,88046.0,88045.0,0.1957646]
[1742853963019,0.47496331,88046.0,88045.0,0.20623032]
[1742853963222,0.47496331,88046.0,88045.0,0.1957646]
[1742853963918,0.47496331,88046.0,88045.0,0.1967646]
[1742853964727,0.47496331,88046.0,88045.0,0.2331646]
[1742853965029,0.47496331,88046.0,88045.0,0.2714646]
[1742853965638,0.47496331,88046.0,88045.0,0.4214646]
[1742853965933,0.00017036,88057.0,88056.0,0.1135504]
[1742853966117,0.00101036,88057.0,88056.0,0.9672704]
[1742853966323,0.00017036,88057.0,88056.0,0.38076]
[1742853966526,0.11371946,88057.0,88056.0,0.7164104]
[1742853966739,0.00017036,88057.0,88056.0,0.7164104]
[1742853968131,0.00117036,88057.0,88056.0,0.7164104]
[1742853968331,0.00317036,88057.0,88056.0,0.7164104]
[1742853969336,0.00017036,88057.0,88056.0,0.7174104]
[1742853971227,0.00017036,88057.0,88056.0,0.6052104]
[1742853971432,0.00017036,88057.0,88056.0,0.7173704]
[1742853971739,0.00017036,88057.0,88056.0,0.7163704]
[1742853972035,0.00017036,88057.0,88056.0,0.7173704]
[1742853972237,0.11371946,88057.0,88056.0,0.6821304]
[1742853972426,0.11371946,88057.0,88056.0,0.6457304]
[1742853972627,0.00017036,88057.0,88056.0,0.6457304]
[1742853972827,0.00017036,88057.0,88056.0,0.6797304]
[1742853973028,0.03867036,88057.0,88056.0,0.6797304]
[1742853975141,0.15221946,88057.0,88056.0,0.6797304]
[1742853976049,0.15221946,88057.0,88056.0,0.6457304]
[1742853976743,0.15281947,88057.0,88056.0,0.6457304]
[1742853977134,0.03927037,88057.0,88056.0,0.6457304]
[1742853977333,0.03867036,88057.0,88056.0,0.6457304]
[1742853977528,0.15221946,88057.0,88056.0,0.6457304]
[1742853977734,0.15297946,88057.0,88056.0,0.6457304]
[1742853978042,0.18967946,88057.0,88056.0,0.6457304]
[1742853978538,0.18967946,88057.0,88056.0,0.38176]
[1742853979743,0.18967946,88057.0,88056.0,0.4953104]
[1742853981044,0.18967946,88057.0,88056.0,0.5315104]
[1742853981643,0.19067946,88057.0,88056.0,0.5315104]
[1742853981852,0.07713036,88057.0,88056.0,0.5325104]
[1742853982041,0.07713036,88057.0,88056.0,0.5693104]
[1742853982234,0.07613036,88057.0,88056.0,0.5693104]
[1742853982439,0.07613036,88057.0,88056.0,0.5325104]
[1742853982846,0.18967946,88057.0,88056.0,0.5325104]
[1742853985041,0.03763036,88057.0,88056.0,0.5325104]
[1742853985241,0.07517036,88057.0,88056.0,0.6033104]
[1742853985635,0.07597036,88057.0,88056.0,0.6033104]
[1742853986056,0.07517036,88057.0,88056.0,0.6033104]
[1742853986347,0.07517036,88057.0,88056.0,0.5325104]
[1742853986652,0.18871946,88057.0,88056.0,0.5315104]
[1742853986855,0.18871946,88057.0,88056.0,0.5325104]
[1742853987247,0.18947946,88057.0,88056.0,0.38176]
[1742853987446,0.18947946,88057.0,88056.0,0.38076]
[1742853987746,0.18947946,88057.0,88056.0,0.38176]
[1742853988654,0.18947946,88057.0,88056.0,0.41866]
[1742853989554,0.18947946,88057.0,88056.0,0.5322104]
[1742853990549,0.18947946,88057.0,88056.0,0.38176]
[1742853990752,0.18947946,88057.0,88056.0,0.4953104]
[1742853991950,0.18947946,88057.0,88056.0,0.38176]
[1742853998456,0.32518219,88057.0,88056.0,0.38176]
[1742853999264,0.33575217,88057.0,88056.0,0.38176]